fUST/lending_fUST_20250314
["ID","MTS","AMOUNT","RATE_DAILY","PERIOD"]
[356094216,1741895432537,-540.0,0.00013354,2]
[356094218,1741895432547,-3000.0,0.00013598,2]
[356094221,1741895432556,-605.42618668,0.00013598,2]
[356094223,1741895432566,-300.0,0.000136,4]
[356094225,1741895432575,-500.0,0.00013673,2]
[356094227,1741895432585,-500.0,0.00013673,2]
[356094229,1741895432595,-500.0,0.00013673,2]
[356094231,1741895432604,-500.0,0.00013673,2]
[356094233,1741895432613,-500.0,0.00013673,2]
[356094235,1741895432623,-500.0,0.00013673,2]
[356094237,1741895432634,-500.0,0.00013673,2]
[356094238,1741895432645,-500.0,0.00013673,2]
[356094239,1741895432655,-500.0,0.00013673,2]
[356094241,1741895432667,-500.0,0.00013673,2]
[356094243,1741895432683,-500.0,0.00013673,2]
[356094245,1741895432692,-500.0,0.00013673,2]
[356094247,1741895432702,-500.0,0.00013673,2]
[356094249,1741895432712,-500.0,0.00013673,2]
[356094250,1741895432723,-209.40546444,0.00013673,2]
[356094251,1741895432731,-500.0,0.00013673,2]
[356094253,1741895432741,-500.0,0.00013673,2]
[356094255,1741895432751,-500.0,0.00013673,2]
[356094257,1741895432761,-500.0,0.00013673,2]
[356094259,1741895432771,-500.0,0.00013673,2]
[356094260,1741895432781,-500.0,0.00013673,2]
[356094261,1741895432791,-500.0,0.00013673,2]
[356094262,1741895432801,-500.0,0.00013673,2]
[356094263,1741895432810,-151.0,0.0001369,2]
[356094264,1741895432821,-500.0,0.00013698,2]
[356094265,1741895432830,-500.0,0.00013698,2]
[356094266,1741895432840,-500.0,0.00013698,2]
[356094267,1741895432850,-500.0,0.00013698,2]
[356094268,1741895432860,-500.0,0.00013698,2]
[356094269,1741895432871,-500.0,0.00013698,2]
[356094270,1741895432882,-500.0,0.00013698,2]
[356094271,1741895432892,-500.0,0.00013698,2]
[356094272,1741895432902,-718.74,0.00013698,2]
[356094273,1741895432912,-500.0,0.00013698,2]
[356094274,1741895432922,-500.0,0.00013698,2]
[356094275,1741895432931,-213.70358955,0.00013698,2]
[356094276,1741895432940,-633.00564381,0.00013698,2]
[356094277,1741895432950,-500.0,0.00013698,2]
[356094278,1741895432959,-500.0,0.00013698,2]
[356094279,1741895432969,-500.0,0.00013698,2]
[356094280,1741895432979,-729.98,0.00013698,2]
[356094281,1741895432988,-395.0241398,0.00013698,2]
[356094282,1741895432997,-500.0,0.00013698,2]
[356094283,1741895433007,-547.86546679,0.00013698,2]
[356094284,1741895433016,-500.0,0.00013698,2]
[356094285,1741895433026,-500.0,0.00013698,2]
[356094286,1741895433036,-592.62,0.00013698,2]
[356094287,1741895433046,-500.0,0.00013698,2]
[356094288,1741895433056,-500.0,0.00013698,2]
[356094289,1741895433067,-500.0,0.00013698,2]
[356094290,1741895433076,-500.0,0.00013698,2]
[356094291,1741895433086,-500.0,0.00013698,2]
[356094292,1741895433097,-500.0,0.00013698,2]
[356094293,1741895433107,-500.0,0.00013698,2]
[356094294,1741895433117,-500.0,0.00013698,2]
[356094295,1741895433129,-500.0,0.00013698,2]
[356094296,1741895433139,-500.0,0.00013698,2]
[356094297,1741895433150,-500.0,0.00013698,2]
[356094298,1741895433160,-588.14528816,0.00013698,2]
[356094299,1741895433170,-915.94,0.00013698,2]
[356094300,1741895433180,-500.0,0.00013698,2]
[356094301,1741895433190,-500.0,0.00013698,2]
[356094302,1741895433200,-500.0,0.00013698,2]
[356094303,1741895433209,-500.0,0.00013698,2]
[356094304,1741895433219,-564.59958604,0.00013698,2]
[356094305,1741895433229,-500.0,0.00013698,2]
[356094306,1741895433239,-669.86,0.00013698,2]
[356094307,1741895433249,-556.55492448,0.00013698,2]
[356094308,1741895433260,-500.0,0.00013698,2]
[356094309,1741895433270,-444.69470341,0.00013698,2]
[356094310,1741895433281,-859.55,0.00013698,2]
[356094311,1741895433291,-500.0,0.00013698,2]
[356094312,1741895433301,-500.0,0.00013698,2]
[356094313,1741895433312,-500.0,0.00013698,2]
[356094314,1741895433322,-500.0,0.00013698,2]
[356094315,1741895433332,-542.11338,0.00013698,2]
[356094316,1741895433342,-500.0,0.00013698,2]
[356094317,1741895433352,-500.0,0.00013698,2]
[356094318,1741895433363,-500.0,0.00013698,2]
[356094319,1741895433372,-500.0,0.00013698,2]
[356094320,1741895433387,-500.0,0.00013698,2]
[356094321,1741895433397,-500.0,0.00013698,2]
[356094322,1741895433407,-500.0,0.00013698,2]
[356094323,1741895433418,-600.42,0.00013698,2]
[356094324,1741895433429,-500.0,0.00013698,2]
[356094325,1741895433440,-500.0,0.00013698,2]
[356094326,1741895433450,-500.0,0.00013698,2]
[356094327,1741895433460,-500.0,0.00013698,2]
[356094328,1741895433470,-500.0,0.00013698,2]
[356094329,1741895433480,-500.0,0.00013698,2]
[356094330,1741895433489,-500.0,0.00013698,2]
[356094331,1741895433499,-500.0,0.00013698,2]
[356094332,1741895433508,-500.0,0.00013698,2]
[356094333,1741895433519,-500.0,0.00013698,2]
[356094334,1741895433530,-617.79088706,0.00013698,2]
[356094335,1741895433540,-500.0,0.00013698,2]
[356094336,1741895433552,-500.0,0.00013698,2]
[356094337,1741895433562,-500.0,0.00013698,2]
[356094338,1741895433572,-500.0,0.00013698,2]
[356094339,1741895433582,-500.0,0.00013698,2]
[356094340,1741895433591,-500.0,0.00013698,2]
[356094341,1741895433602,-500.0,0.00013698,2]
[356094342,1741895433611,-500.0,0.00013698,2]
[356094343,1741895433621,-500.0,0.00013698,2]
[356094344,1741895433632,-500.0,0.00013698,2]
[356094345,1741895433641,-500.0,0.00013698,2]
[356094346,1741895433651,-926.41,0.00013698,2]
[356094347,1741895433662,-525.47273363,0.00013698,2]
[356094348,1741895433675,-592.81,0.00013698,2]
[356094349,1741895433685,-1073.35,0.00013698,2]
[356094350,1741895433695,-500.0,0.00013698,2]
[356094351,1741895433706,-500.0,0.00013698,2]
[356094352,1741895433715,-500.0,0.00013698,2]
[356094353,1741895433724,-500.0,0.00013698,2]
[356094354,1741895433734,-500.0,0.00013698,2]
[356094355,1741895433743,-500.0,0.00013698,2]
[356094356,1741895433753,-500.0,0.00013698,2]
[356094357,1741895433764,-500.0,0.00013698,2]
[356094358,1741895433773,-500.0,0.00013698,2]
[356094359,1741895433783,-500.0,0.00013698,2]
[356094360,1741895433792,-500.0,0.00013698,2]
[356094361,1741895433802,-500.0,0.00013698,2]
[356094362,1741895433811,-500.0,0.00013698,2]
[356094363,1741895433821,-802.61,0.00013698,2]
[356094364,1741895433830,-529.21616675,0.00013698,2]
[356094365,1741895433840,-565.91,0.00013698,2]
[356094366,1741895433849,-500.0,0.00013698,2]
[356094367,1741895433858,-696.1,0.00013698,2]
[356094368,1741895433868,-670.19,0.00013698,2]
[356094369,1741895433879,-500.0,0.00013698,2]
[356094370,1741895433890,-500.0,0.00013698,2]
[356094371,1741895433899,-1900.02,0.00013698,2]
[356094372,1741895433909,-478.78189763,0.00013698,2]
[356094373,1741895433919,-529.44266471,0.00013698,2]
[356094374,1741895433929,-555.45,0.00013698,2]
[356094375,1741895433940,-500.0,0.00013698,2]
[356094376,1741895433950,-510.47,0.00013698,2]
[356094377,1741895433960,-500.0,0.00013698,2]
[356094378,1741895433970,-500.0,0.00013698,2]
[356094379,1741895433979,-500.0,0.00013698,2]
[356094380,1741895433991,-993.78,0.00013698,2]
[356094381,1741895434001,-500.0,0.00013698,2]
[356094382,1741895434011,-500.0,0.00013698,2]
[356094383,1741895434021,-500.0,0.00013698,2]
[356094384,1741895434031,-500.0,0.00013698,2]
[356094385,1741895434040,-500.0,0.00013698,2]
[356094386,1741895434050,-500.0,0.00013698,2]
[356094387,1741895434060,-500.0,0.00013698,2]
[356094388,1741895434070,-500.0,0.00013698,2]
[356094389,1741895434080,-500.0,0.00013698,2]
[356094390,1741895434091,-500.0,0.00013698,2]
[356094391,1741895434101,-1320.95,0.00013698,2]
[356094392,1741895434111,-500.0,0.00013698,2]
[356094393,1741895434121,-500.0,0.00013698,2]
[356094394,1741895434133,-500.0,0.00013698,2]
[356094395,1741895434143,-416.82262324,0.00013698,2]
[356094396,1741895434152,-1672.28,0.00013698,2]
[356094397,1741895434161,-500.0,0.00013698,2]
[356094398,1741895434171,-500.0,0.00013698,2]
[356094399,1741895434180,-500.0,0.00013698,2]
[356094400,1741895434555,-500.0,0.00013698,2]
[356094401,1741895434567,-500.0,0.00013698,2]
[356094402,1741895434576,-500.0,0.00013698,2]
[356094403,1741895434586,-500.0,0.00013698,2]
[356094404,1741895434595,-985.66,0.00013698,2]
[356094405,1741895434604,-500.0,0.00013698,2]
[356094406,1741895434613,-500.0,0.00013698,2]
[356094407,1741895434623,-500.0,0.00013698,2]
[356094408,1741895434633,-500.0,0.00013698,2]
[356094409,1741895434642,-500.0,0.00013698,2]
[356094410,1741895434651,-500.0,0.00013698,2]
[356094411,1741895434662,-1120.14,0.00013698,2]
[356094412,1741895434673,-500.0,0.00013698,2]
[356094413,1741895434682,-782.0,0.00013698,2]
[356094414,1741895434691,-500.0,0.00013698,2]
[356094415,1741895434700,-1853.38,0.00013698,2]
[356094416,1741895434711,-500.0,0.00013698,2]
[356094417,1741895434720,-500.0,0.00013698,2]
[356094418,1741895434730,-500.0,0.00013698,2]
[356094419,1741895434740,-500.0,0.00013698,2]
[356094420,1741895434751,-500.0,0.00013698,2]
[356094421,1741895434761,-500.0,0.00013698,2]
[356094422,1741895434770,-500.0,0.00013698,2]
[356094423,1741895434780,-500.0,0.00013698,2]
[356094424,1741895434790,-500.0,0.00013698,2]
[356094425,1741895434800,-500.0,0.00013698,2]
[356094426,1741895434809,-1032.23,0.00013698,2]
[356094427,1741895434819,-500.0,0.00013698,2]
[356094428,1741895434829,-500.0,0.00013698,2]
[356094429,1741895434838,-500.0,0.00013698,2]
[356094430,1741895434848,-500.0,0.00013698,2]
[356094431,1741895434858,-500.0,0.00013698,2]
[356094432,1741895434868,-500.0,0.00013698,2]
[356094433,1741895434879,-520.9388393,0.00013698,2]
[356094434,1741895434888,-919.78,0.00013698,2]
[356094435,1741895434897,-500.0,0.00013698,2]
[356094436,1741895434907,-500.0,0.00013698,2]
[356094437,1741895434917,-567.13,0.00013698,2]
[356094438,1741895434926,-500.0,0.00013698,2]
[356094439,1741895434936,-500.0,0.00013698,2]
[356094440,1741895434946,-504.76,0.00013698,2]
[356094441,1741895434956,-1477.97,0.00013698,2]
[356094442,1741895434966,-814.92,0.00013698,2]
[356094443,1741895434975,-500.0,0.00013698,2]
[356094444,1741895434986,-716.89,0.00013698,2]
[356094445,1741895434995,-500.0,0.00013698,2]
[356094446,1741895435005,-500.0,0.00013698,2]
[356094447,1741895435015,-500.0,0.00013698,2]
[356094448,1741895435025,-500.0,0.00013698,2]
[356094449,1741895435034,-346.83444786,0.00013698,2]
[356094450,1741895435044,-2435.2,0.00013698,2]
[356094451,1741895435053,-500.0,0.00013698,2]
[356094452,1741895435064,-1122.89,0.00013698,2]
[356094453,1741895435074,-500.0,0.00013698,2]
[356094454,1741895435084,-500.0,0.00013698,2]
[356094455,1741895435093,-881.46,0.00013698,2]
[356094456,1741895435103,-815.2,0.00013698,2]
[356094457,1741895435112,-500.0,0.00013698,2]
[356094458,1741895435122,-500.0,0.00013698,2]
[356094459,1741895435132,-500.0,0.00013698,2]
[356094460,1741895435142,-500.0,0.00013698,2]
[356094461,1741895435152,-500.0,0.00013698,2]
[356094462,1741895435162,-500.0,0.00013698,2]
[356094463,1741895435172,-500.0,0.00013698,2]
[356094464,1741895435182,-500.0,0.00013698,2]
[356094465,1741895435191,-537.14068873,0.00013698,2]
[356094466,1741895435201,-985.12,0.00013698,2]
[356094467,1741895435210,-500.0,0.00013698,2]
[356094468,1741895435220,-977.86,0.00013698,2]
[356094469,1741895435229,-500.0,0.00013698,2]
[356094470,1741895435239,-604.51,0.00013698,2]
[356094471,1741895435248,-797.13,0.00013698,2]
[356094472,1741895435258,-500.0,0.00013698,2]
[356094473,1741895435268,-500.0,0.00013698,2]
[356094474,1741895435278,-500.0,0.00013698,2]
[356094475,1741895435288,-566.81302546,0.00013698,2]
[356094476,1741895435298,-500.0,0.00013698,2]
[356094477,1741895435308,-900.08,0.00013698,2]
[356094478,1741895435318,-500.0,0.00013698,2]
[356094479,1741895435327,-500.0,0.00013698,2]
[356094480,1741895435336,-500.0,0.00013698,2]
[356094481,1741895435346,-500.0,0.00013698,2]
[356094482,1741895435356,-500.0,0.00013698,2]
[356094483,1741895435367,-500.0,0.00013698,2]
[356094484,1741895435376,-1033.41,0.00013698,2]
[356094485,1741895435386,-987.13,0.00013698,2]
[356094486,1741895435396,-500.0,0.00013698,2]
[356094487,1741895435405,-500.0,0.00013698,2]
[356094488,1741895435415,-500.0,0.00013698,2]
[356094489,1741895435424,-561.85777182,0.00013698,2]
[356094490,1741895435434,-404.3285762,0.00013698,2]
[356094491,1741895435444,-500.0,0.00013698,2]
[356094492,1741895435453,-1031.99,0.00013698,2]
[356094493,1741895435463,-574.29,0.00013698,2]
[356094494,1741895435472,-500.0,0.00013698,2]
[356094495,1741895435481,-500.0,0.00013698,2]
[356094496,1741895435491,-500.0,0.00013698,2]
[356094497,1741895435500,-500.0,0.00013698,2]
[356094498,1741895435509,-500.0,0.00013698,2]
[356094499,1741895435519,-551.04,0.00013698,2]
[356094500,1741895435528,-500.0,0.00013698,2]
[356094501,1741895435537,-500.0,0.00013698,2]
[356094502,1741895435547,-1471.9,0.00013698,2]
[356094503,1741895435556,-500.0,0.00013698,2]
[356094504,1741895435566,-505.09,0.00013698,2]
[356094505,1741895435575,-500.0,0.00013698,2]
[356094506,1741895435585,-500.0,0.00013698,2]
[356094507,1741895435594,-1118.78,0.00013698,2]
[356094508,1741895435603,-500.0,0.00013698,2]
[356094509,1741895435613,-500.0,0.00013698,2]
[356094510,1741895435622,-500.0,0.00013698,2]
[356094511,1741895435633,-500.0,0.00013698,2]
[356094512,1741895435642,-577.40701649,0.00013698,2]
[356094513,1741895435652,-500.0,0.00013698,2]
[356094514,1741895435663,-500.0,0.00013698,2]
[356094515,1741895435674,-1105.79,0.00013698,2]
[356094516,1741895435683,-568.50989311,0.00013698,2]
[356094517,1741895435693,-518.23089913,0.00013698,2]
[356094518,1741895435703,-500.0,0.00013698,2]
[356094519,1741895435712,-500.0,0.00013698,2]
[356094520,1741895435721,-418.95023218,0.00013698,2]
[356094521,1741895435731,-500.0,0.00013698,2]
[356094522,1741895435741,-500.0,0.00013698,2]
[356094523,1741895435753,-698.96,0.00013698,2]
[356094524,1741895435763,-500.0,0.00013698,2]
[356094525,1741895435774,-500.0,0.00013698,2]
[356094526,1741895435783,-500.0,0.00013698,2]
[356094527,1741895435792,-500.0,0.00013698,2]
[356094528,1741895435802,-500.0,0.00013698,2]
[356094529,1741895435812,-500.0,0.00013698,2]
[356094530,1741895435822,-2274.07,0.00013698,2]
[356094531,1741895435831,-500.0,0.00013698,2]
[356094532,1741895435841,-500.0,0.00013698,2]
[356094533,1741895435851,-500.0,0.00013698,2]
[356094534,1741895435861,-500.0,0.00013698,2]
[356094535,1741895435871,-500.0,0.00013698,2]
[356094536,1741895435881,-1049.97,0.00013698,2]
[356094537,1741895435892,-1181.55,0.00013698,2]
[356094538,1741895435902,-500.0,0.00013698,2]
[356094539,1741895435912,-1004.4,0.00013698,2]
[356094540,1741895435922,-1924.06,0.00013698,2]
[356094541,1741895435932,-500.0,0.00013698,2]
[356094542,1741895435942,-1127.21,0.00013698,2]
[356094543,1741895435951,-500.0,0.00013698,2]
[356094544,1741895435961,-1448.48,0.00013698,2]
[356094545,1741895435971,-500.0,0.00013698,2]
[356094546,1741895435981,-1754.72,0.00013698,2]
[356094547,1741895435991,-500.0,0.00013698,2]
[356094548,1741895436000,-677.35,0.00013698,2]
[356094549,1741895436010,-500.0,0.00013698,2]
[356094550,1741895436020,-500.0,0.00013698,2]
[356094551,1741895436030,-500.0,0.00013698,2]
[356094552,1741895436039,-500.0,0.00013698,2]
[356094553,1741895436049,-500.0,0.00013698,2]
[356094554,1741895436059,-500.0,0.00013698,2]
[356094555,1741895436069,-2165.89,0.00013698,2]
[356094556,1741895436078,-1059.57,0.00013698,2]
[356094557,1741895436088,-500.0,0.00013698,2]
[356094558,1741895436098,-500.0,0.00013698,2]
[356094559,1741895436107,-500.0,0.00013698,2]
[356094560,1741895436116,-500.0,0.00013698,2]
[356094561,1741895436126,-500.0,0.00013698,2]
[356094562,1741895436138,-500.0,0.00013698,2]
[356094563,1741895436147,-2402.59,0.00013698,2]
[356094564,1741895436156,-500.0,0.00013698,2]
[356094565,1741895436166,-500.0,0.00013698,2]
[356094566,1741895436176,-582.96,0.00013698,2]
[356094567,1741895436185,-500.0,0.00013698,2]
[356094568,1741895436195,-500.0,0.00013698,2]
[356094569,1741895436204,-500.0,0.00013698,2]
[356094570,1741895436214,-425.69629456,0.00013698,2]
[356094571,1741895436224,-500.0,0.00013698,2]
[356094572,1741895436233,-500.0,0.00013698,2]
[356094573,1741895436243,-535.92741956,0.00013698,2]
[356094574,1741895436253,-1430.69,0.00013698,2]
[356094575,1741895436262,-1000.0,0.00013698,2]
[356094576,1741895436272,-500.0,0.00013698,2]
[356094577,1741895436282,-500.0,0.00013698,2]
[356094578,1741895436292,-500.0,0.00013698,2]
[356094579,1741895436301,-500.0,0.00013698,2]
[356094580,1741895436311,-500.0,0.00013698,2]
[356094581,1741895436320,-740.21,0.00013698,2]
[356094582,1741895436330,-573.0,0.00013698,2]
[356094583,1741895436339,-987.01,0.00013698,2]
[356094584,1741895436349,-500.0,0.00013698,2]
[356094585,1741895436358,-500.0,0.00013698,2]
[356094586,1741895436368,-500.0,0.00013698,2]
[356094587,1741895436380,-15058.52,0.00013698,2]
[356094588,1741895436390,-500.0,0.00013698,2]
[356094589,1741895436399,-500.0,0.00013698,2]
[356094590,1741895436410,-500.0,0.00013698,2]
[356094591,1741895436420,-500.0,0.00013698,2]
[356094592,1741895436430,-500.0,0.00013698,2]
[356094593,1741895436440,-744.73,0.00013698,2]
[356094594,1741895436450,-500.0,0.00013698,2]
[356094595,1741895436460,-500.0,0.00013698,2]
[356094596,1741895436469,-500.0,0.00013698,2]
[356094597,1741895436479,-500.0,0.00013698,2]
[356094598,1741895436489,-500.0,0.00013698,2]
[356094599,1741895436498,-500.0,0.00013698,2]
[356094600,1741895436508,-500.0,0.00013698,2]
[356094601,1741895436518,-1830.51,0.00013698,2]
[356094602,1741895436527,-500.0,0.00013698,2]
[356094603,1741895436537,-632.64,0.00013698,2]
[356094604,1741895436547,-11604.78,0.00013698,2]
[356094605,1741895436557,-500.0,0.00013698,2]
[356094606,1741895436566,-1332.45,0.00013698,2]
[356094607,1741895436576,-4554.61,0.00013698,2]
[356094608,1741895436585,-1636.96,0.00013698,2]
[356094609,1741895436595,-500.0,0.00013698,2]
[356094610,1741895436605,-500.0,0.00013698,2]
[356094611,1741895436614,-6214.93,0.00013698,2]
[356094612,1741895436624,-500.0,0.00013698,2]
[356094613,1741895436633,-500.0,0.00013698,2]
[356094614,1741895436643,-518.29433402,0.00013698,2]
[356094615,1741895436652,-864.97,0.00013698,2]
[356094616,1741895436663,-500.0,0.00013698,2]
[356094617,1741895436677,-500.0,0.00013698,2]
[356094618,1741895436687,-1420.88,0.00013698,2]
[356094619,1741895436696,-500.0,0.00013698,2]
[356094620,1741895436706,-341.14992222,0.00013698,2]
[356094621,1741895436716,-2190.28,0.00013698,2]
[356094622,1741895436725,-500.0,0.00013698,2]
[356094623,1741895436735,-253.31676283,0.00013698,2]
[356094624,1741895436744,-1000.79567679,0.00013698,2]
[356094625,1741895436788,-1949.96432321,0.00013698,2]
[356094626,1741895436798,-522.52348901,0.00013698,2]
[356094627,1741895436808,-3526.3,0.00013698,2]
[356094628,1741895436817,-554.96870575,0.00013698,2]
[356094629,1741895436826,-500.0,0.00013698,2]
[356094630,1741895436836,-210389.0,0.00013698,2]
[356094631,1741895436846,-2632.72,0.00013698,2]
[356094632,1741895436856,-1162.99,0.00013698,2]
[356094633,1741895436866,-3048.5,0.00013698,2]
[356094634,1741895436875,-500.0,0.00013698,2]
[356094635,1741895436887,-1963.71,0.00013698,2]
[356094636,1741895436896,-500.0,0.00013698,2]
[356094637,1741895436906,-2357.94,0.00013698,2]
[356094638,1741895436915,-500.0,0.00013698,2]
[356094639,1741895436925,-2519.23,0.00013698,2]
[356094640,1741895437000,-500.0,0.00013698,2]
[356094641,1741895437010,-4374.59,0.00013698,2]
[356094642,1741895437020,-618.04,0.00013698,2]
[356094643,1741895437029,-240.23851337,0.00013698,2]
[356094644,1741895437039,-899.38,0.00013698,2]
[356094645,1741895437048,-500.0,0.00013698,2]
[356094646,1741895437057,-500.0,0.00013698,2]
[356094647,1741895437066,-500.0,0.00013698,2]
[356094648,1741895437075,-500.0,0.00013698,2]
[356094649,1741895437085,-1679.95,0.00013698,2]
[356094650,1741895437094,-500.0,0.00013698,2]
[356094651,1741895437104,-500.0,0.00013698,2]
[356094652,1741895437113,-500.0,0.00013698,2]
[356094653,1741895437123,-500.0,0.00013698,2]
[356094654,1741895437134,-500.0,0.00013698,2]
[356094655,1741895437143,-500.0,0.00013698,2]
[356094656,1741895437153,-500.0,0.00013698,2]
[356094657,1741895437162,-500.0,0.00013698,2]
[356094658,1741895437171,-500.0,0.00013698,2]
[356094659,1741895437181,-500.0,0.00013698,2]
[356094660,1741895437190,-500.0,0.00013698,2]
[356094661,1741895437199,-500.0,0.00013698,2]
[356094662,1741895437208,-500.0,0.00013698,2]
[356094663,1741895437218,-500.0,0.00013698,2]
[356094664,1741895437227,-500.0,0.00013698,2]
[356094665,1741895437236,-500.0,0.00013698,2]
[356094666,1741895437246,-500.0,0.00013698,2]
[356094667,1741895437255,-500.0,0.00013698,2]
[356094668,1741895437265,-500.0,0.00013698,2]
[356094669,1741895437274,-430.86543128,0.00013698,2]
[356094670,1741895437284,-500.0,0.00013698,2]
[356094671,1741895437293,-500.0,0.00013698,2]
[356094672,1741895437303,-458.30055995,0.00013698,2]
[356094673,1741895437334,-41.69944005,0.00013698,2]
[356094674,1741895437345,-500.0,0.00013698,2]
[356094675,1741895437356,-500.0,0.00013698,2]
[356094676,1741895437366,-500.0,0.00013698,2]
[356094677,1741895437375,-500.0,0.00013698,2]
[356094678,1741895437386,-500.0,0.00013698,2]
[356094679,1741895437395,-500.0,0.00013698,2]
[356094680,1741895437405,-440.85,0.00013698,2]
[356094681,1741895437414,-500.0,0.00013698,2]
[356094682,1741895437424,-500.0,0.00013698,2]
[356094683,1741895437433,-1770.04,0.00013698,2]
[356094684,1741895437443,-500.0,0.00013698,2]
[356094685,1741895437453,-913.15,0.00013698,2]
[356094686,1741895437463,-500.0,0.00013698,2]
[356094687,1741895437472,-500.0,0.00013698,2]
[356094688,1741895437482,-500.0,0.00013698,2]
[356094689,1741895437491,-500.0,0.00013698,2]
[356094690,1741895437501,-744.61,0.00013698,2]
[356094691,1741895437510,-500.0,0.00013698,2]
[356094692,1741895437519,-12057.96,0.00013698,2]
[356094694,1741895437529,-500.0,0.00013698,2]
[356094696,1741895437539,-500.0,0.00013698,2]
[356094697,1741895437549,-3085.32,0.00013698,2]
[356094699,1741895437558,-500.0,0.00013698,2]
[356094700,1741895437567,-500.0,0.00013698,2]
[356094701,1741895437577,-500.0,0.00013698,2]
[356094702,1741895437587,-1618.87,0.00013698,2]
[356094703,1741895437596,-500.0,0.00013698,2]
[356094704,1741895437606,-500.0,0.00013698,2]
[356094705,1741895437615,-500.0,0.00013698,2]
[356094706,1741895437624,-500.0,0.00013698,2]
[356094707,1741895437634,-500.0,0.00013698,2]
[356094708,1741895437643,-997.3,0.00013698,2]
[356094709,1741895437653,-500.0,0.00013698,2]
[356094710,1741895437665,-7519.49,0.00013698,2]
[356094711,1741895437675,-500.0,0.00013698,2]
[356094712,1741895437684,-500.0,0.00013698,2]
[356094713,1741895437693,-500.0,0.00013698,2]
[356094714,1741895437703,-500.0,0.00013698,2]
[356094715,1741895437713,-2113.91,0.00013698,2]
[356094717,1741895437723,-500.0,0.00013698,2]
[356094719,1741895437732,-500.0,0.00013698,2]
[356094720,1741895437743,-500.0,0.00013698,2]
[356094721,1741895437753,-500.0,0.00013698,2]
[356094722,1741895437762,-500.0,0.00013698,2]
[356094723,1741895437771,-500.0,0.00013698,2]
[356094724,1741895437780,-500.0,0.00013698,2]
[356094725,1741895437790,-500.0,0.00013698,2]
[356094726,1741895437799,-500.0,0.00013698,2]
[356094727,1741895437809,-6238.03,0.00013698,2]
[356094728,1741895437818,-500.0,0.00013698,2]
[356094729,1741895437827,-587.13,0.00013698,2]
[356094730,1741895437837,-500.0,0.00013698,2]
[356094732,1741895437846,-500.0,0.00013698,2]
[356094733,1741895437856,-500.0,0.00013698,2]
[356094735,1741895437866,-523.97743146,0.00013698,2]
[356094736,1741895437875,-16438.39,0.00013698,2]
[356094737,1741895437885,-2929.91,0.00013698,2]
[356094738,1741895437894,-500.0,0.00013698,2]
[356094740,1741895437904,-500.0,0.00013698,2]
[356094742,1741895437913,-500.0,0.00013698,2]
[356094743,1741895437923,-640.4,0.00013698,2]
[356094744,1741895437933,-500.0,0.00013698,2]